fUSD/lending_fUSD_20241101
["ID","MTS","AMOUNT","RATE_DAILY","PERIOD"]
[341155786,1730481042821,-500.0,0.00047879,3]
[341155787,1730481042830,-3960.9363253,0.00047879,2]
[341155814,1730481045575,-200.0,0.00047863,30]
[341155816,1730481045585,-3285.9825,0.00047879,2]
[341155817,1730481045598,-1743.4,0.00047879,2]
[341155818,1730481045632,-7000.3570898,0.00047879,2]
[341155819,1730481045895,-150.0,0.00047877,10]
[341155820,1730481045906,-2895.12471392,0.00047879,2]
[341155821,1730481045917,-99754.16926665,0.00047879,2]
[341155822,1730481046060,-1300.66516964,0.00047879,2]
[341155824,1730481141196,250.0,0.00017,2]
[341155825,1730481142293,300.0,0.00019,2]
[341155826,1730481311804,157.23,0.00015342,2]
[341155827,1730481384109,-350.0,0.00021,2]
[341155828,1730481702064,308.02,0.00019178,2]
[341155829,1730481907985,37144.47929335,0.00016,2]
[341155830,1730481908024,26765.11275625,0.00016,2]
[341155831,1730481908059,267495.88275625,0.00016,2]
[341155832,1730481908088,930031.88163622,0.00016,2]
[341155834,1730481929902,5975.07580155,0.000101,2]
[341155836,1730481942886,157.83,0.00015342,2]
[341155837,1730481955760,367.07577334,0.000159,2]
[341155838,1730482026224,-357.06491876,0.00021,2]
[341155839,1730482051146,-2554.40143296,0.00021,2]
[341155840,1730482051166,-1469.84460955,0.000225,2]
[341155841,1730482051187,-400.0,0.00023,2]
[341155842,1730482051210,-262.82112176,0.000249,2]
[341155843,1730482051230,-4852.0235128,0.0002495,2]
[341155844,1730482052129,-155.76346608,0.0002495,2]
[341155845,1730482078512,212.60733183,0.00013,15]
[341155846,1730482094010,1071.55714965,0.0002,2]
[341155856,1730482153103,-2553.74920678,0.00023922,2]
[341155857,1730482153123,-10186.39142277,0.0002495,2]
[341155858,1730482153144,-450.0,0.00025,2]
[341155859,1730482153164,-6660.63967149,0.00025,2]
[341155860,1730482153183,-1078.31856227,0.00025,2]
[341155861,1730482153202,-397.09700734,0.00025,2]
[341155862,1730482153221,-2303.780043,0.00025,2]
[341155863,1730482153241,-679.99393091,0.000253,5]
[341155864,1730482153260,-3305.84901544,0.00026,2]
[341155865,1730482162101,-1127.80098456,0.00026,2]
[341155866,1730482162121,-517.68970848,0.0002604,2]
[341155867,1730482162142,-500.0,0.00027,2]
[341155868,1730482162162,-206.63186436,0.0002736,120]
[341155869,1730482162181,-2800.51985946,0.000275,2]
[341155870,1730482162200,-153.939,0.00028417,2]
[341155871,1730482162221,-550.0,0.00029,2]
[341155872,1730482162243,-308.02,0.00029452,2]
[341155873,1730482162265,-376.3055,0.0003,2]
[341155874,1730482162288,-179.225,0.0003,2]
[341155875,1730482162310,-600.0,0.00031,2]
[341155876,1730482162331,-650.0,0.00033,2]
[341155877,1730482162351,-398.61023212,0.00033,2]
[341155878,1730482162370,-700.0,0.00035,2]
[341155879,1730482162389,-23704.90053695,0.00035,2]
[341155880,1730482162407,-150.0,0.00035,120]
[341155881,1730482162427,-378.20264688,0.00035,10]
[341155882,1730482162446,-16087.93692719,0.00035,2]
[341155883,1730482166082,-6303.34744697,0.00035,2]
[341155884,1730482168090,-1415.85927834,0.00035,2]
[341155885,1730482168110,-7046.11357746,0.000351,30]
[341155886,1730482168131,-376.3055,0.00036883,2]
[341155887,1730482168152,-750.0,0.00037,2]
[341155888,1730482170786,335.43767582,0.0002594,2]
[341155907,1730482231759,-165.73551217,0.000378,2]
[341155909,1730482231770,-308.02,0.00039726,2]
[341155911,1730482231780,-172.17,0.00039802,2]
[341155913,1730482231789,-587.84,0.00039827,2]
[341155915,1730482231798,-217.37448783,0.000399,2]
[341155930,1730482231931,-1081.62551217,0.000399,2]
[341155931,1730482231942,-2597.678293,0.0004,120]
[341155932,1730482231953,-150.0,0.0004,120]
[341155933,1730482231963,-153.0,0.00040158,2]
[341155934,1730482231973,-153.0,0.00040158,2]
[341155935,1730482231982,-153.0,0.00040158,2]
[341155936,1730482231991,-172.64,0.0004099,120]
[341155937,1730482232001,-3623.10861295,0.00041303,2]
[341155996,1730482237800,-360.53268373,0.00041303,2]
[341155997,1730482237859,-310.15608993,0.00041303,2]
[341155998,1730482238093,-719.13261339,0.00041303,2]
[341155999,1730482238103,-1015.86738661,0.0004137,2]
[341156011,1730482239977,-7004.75,0.0004137,2]
[341156012,1730482240093,-2136.05235002,0.0004137,2]
[341156013,1730482240104,-408.370001,0.0004137,2]
[341156015,1730482243062,-3577.6942756,0.0004137,2]
[341156016,1730482243073,-3005.04092076,0.0004137,2]
[341156020,1730482451749,157.56,0.00015342,2]
[341156104,1730482785283,154.01,0.00019178,2]
[341156105,1730482851675,1993.45,0.00044547,30]
[341156106,1730482946592,156.85,0.00015342,2]
[341156108,1730482954545,250.0,0.00017,2]
[341156109,1730482955807,300.0,0.00019,2]
[341156113,1730483228144,-350.0,0.00021,2]
[341156114,1730483228166,-319.16670175,0.00023,2]
[341156115,1730483229134,-80.83329825,0.00023,2]
[341156116,1730483229156,-450.0,0.00025,2]
[341156117,1730483229175,-1870.451758,0.00027684,2]
[341156118,1730483229195,-196.5045,0.00027923,2]
[341156119,1730483229214,-150.0,0.00028822,2]
[341156120,1730483229234,-3014.88463002,0.00028822,2]
[341156121,1730483235091,-2887.08536998,0.00028822,2]
[341156122,1730483235112,-156.85,0.00028858,2]
[341156123,1730483235135,-306.224,0.0003,2]
[341156124,1730483235155,-155.41575,0.0003,2]
[341156125,1730483235177,-154.01,0.00032877,2]
[341156126,1730483235196,-150.0,0.00034548,10]
[341156127,1730483235216,-159.96,0.00034952,2]
[341156128,1730483235236,-306.224,0.00036494,2]
[341156129,1730483235257,-435.23173855,0.000382,2]
[341156130,1730483350100,-169.65,0.00036494,2]
[341156131,1730483350119,-734.76826145,0.000382,2]
[341156132,1730483351658,159.96,0.00033554,2]
[341156133,1730483355495,171.534,0.00027997,2]
[341156134,1730483365290,154.01,0.00019178,2]
[341156135,1730483399766,160.13,0.00033644,30]
[341156153,1730483431974,-196.32,0.00039366,2]
[341156154,1730483431983,-1010.51210735,0.000394,2]
[341156156,1730483431992,-150.0,0.000395,120]
[341156158,1730483432002,-299.99,0.000395,120]
[341156160,1730483432011,-2643.13650828,0.000395,2]
[341156169,1730483432109,-5878.01882385,0.000395,2]
[341156175,1730483432211,-1478.83466787,0.000395,2]
[341156177,1730483432220,-9166.53305021,0.000395,2]
[341156179,1730483432230,-6819.46170178,0.00040069,4]
[341156219,1730483438195,-21949.56648108,0.00040069,4]
[341156220,1730483438205,-23900.0,0.0004007,2]
[341156221,1730483438215,-250.0,0.00040609,2]
[341156222,1730483438225,-1300.0,0.00040657,4]
[341156223,1730483438236,-281.0,0.00040657,4]
[341156224,1730483438246,-822.43,0.00040657,2]
[341156225,1730483438257,-150.99,0.00040657,2]
[341156226,1730483438267,-277.952,0.00041086,60]
[341156227,1730483438278,-345.88,0.00041271,2]
[341156228,1730483438289,-164.96,0.0004199,30]
[341156229,1730483438303,-8413.39448354,0.00042,30]
[341156230,1730483438313,-164.96,0.00042074,30]
[341156232,1730483438324,-164.96,0.00042074,30]
[341156234,1730483438335,-164.96,0.00042074,30]
[341156236,1730483438346,-19405.3,0.00042084,2]
[341156239,1730483438357,-616.34,0.00042094,2]
[341156241,1730483438367,-156.85,0.00042374,2]
[341156243,1730483438378,-697.02,0.00042464,2]
[341156245,1730483438389,-172.17,0.00043,120]
[341156247,1730483438400,-156.015,0.0004334,2]
[341156249,1730483438411,-156.098,0.0004335,2]
[341156250,1730483438421,-500.0,0.00043524,2]
[341156251,1730483438433,-164.96,0.00043537,30]
[341156252,1730483438443,-858.94,0.00043544,2]
[341156253,1730483438453,-7227.32,0.00043547,2]
[341156254,1730483438464,-186.371,0.00043547,2]
[341156255,1730483438474,-164.96,0.00043725,30]
[341156256,1730483438484,-164.96,0.00043725,30]
[341156257,1730483438494,-164.96,0.00043725,30]
[341156258,1730483438504,-164.96,0.00043725,30]
[341156259,1730483438514,-500.0,0.00043734,31]
[341156260,1730483438524,-500.0,0.00043734,31]
[341156261,1730483438535,-500.0,0.00043734,31]
[341156262,1730483438548,-454.54274965,0.00043734,31]
[341156263,1730483438559,-177.77,0.00043751,2]
[341156264,1730483438569,-250.0,0.00043774,2]
[341156265,1730483438579,-1812.09,0.0004378,120]
[341156266,1730483438590,-196.32,0.00043794,2]
[341156267,1730483438599,-158.58,0.00044052,2]
[341156268,1730483438610,-303.86427395,0.0004419,2]
[341156269,1730483438620,-167.41740255,0.0004419,28]
[341156270,1730483438629,-164.96,0.0004428,30]
[341156271,1730483438639,-164.96,0.0004428,30]
[341156272,1730483438649,-164.96,0.0004428,30]
[341156273,1730483438658,-164.96,0.0004428,30]
[341156274,1730483438667,-164.96,0.0004428,30]
[341156275,1730483438678,-164.96,0.0004428,30]
[341156276,1730483438688,-164.96,0.0004428,30]
[341156277,1730483438699,-164.96,0.0004428,30]
[341156278,1730483438710,-164.96,0.0004428,30]
[341156279,1730483438722,-164.96,0.0004428,30]
[341156280,1730483438734,-164.96,0.0004428,30]
[341156281,1730483438746,-63194.1784825,0.0004429,2]
[341156282,1730483438839,-308.08421506,0.0004429,2]
[341156283,1730483438854,-7757.75011502,0.0004429,2]
[341156284,1730483438868,-3121.66586252,0.0004429,2]
[341156285,1730483438882,-3104.75625834,0.0004429,2]
[341156286,1730483438895,-455.77207641,0.0004429,2]
[341156287,1730483438908,-156.091,0.0004437,3]
[341156288,1730483438920,-26.90498359,0.000445,30]
[341156365,1730483440105,-1483.58705821,0.000445,30]
[341156367,1730483440116,-376.41294644,0.00044547,7]
[341156371,1730483440141,-151.22070408,0.00044547,7]
[341156373,1730483440152,-250.0,0.000446,120]
[341156375,1730483440162,-697.02,0.00044728,2]
[341156377,1730483440172,-1288.8,0.000448,2]
[341156379,1730483440182,-311.2627217,0.00044821,16]
[341156381,1730483440192,-700.0,0.00044821,16]
[341156383,1730483440201,-700.0,0.00044821,16]
[341156385,1730483440212,-700.0,0.00044821,16]
[341156387,1730483440221,-700.0,0.00044821,16]
[341156389,1730483440231,-566.5087822,0.00044821,16]
[341156391,1730483440244,-133.4912178,0.00044821,16]
[341156393,1730483440254,-306.224,0.00045064,14]
[341156395,1730483440264,-376.3055,0.00045349,14]
[341156397,1730483440275,-156.075,0.0004539,10]
[341156399,1730483440285,-303.86427388,0.00045527,2]
[341156401,1730483440295,-767.0,0.00045718,30]
[341156404,1730483440306,-1000.0,0.00045728,2]
[341156406,1730483440316,-454.53500823,0.00046,30]
[341156408,1730483440329,-137.94499077,0.00046,30]
[341156410,1730483440339,-156.111,0.0004641,30]
[341156412,1730483440349,-235.11900922,0.0004661,15]
[341156796,1730483444415,-153.0,0.00040112,2]
[341156798,1730483444425,-153.0,0.00040112,2]
[341156800,1730483444435,-153.0,0.00040112,2]
[341156802,1730483444445,-153.0,0.00040112,2]
[341156804,1730483444455,-153.0,0.00040112,2]
[341156806,1730483444466,-153.0,0.00040112,2]
[341156808,1730483444476,-153.0,0.00040112,2]
[341156810,1730483444487,-153.0,0.00040112,2]
[341156812,1730483444497,-153.0,0.00040112,2]
[341156814,1730483444507,-150.0,0.0004641,30]
[341156816,1730483444518,-1653.46237862,0.0004661,15]
[341156818,1730483444528,-200.0,0.0004661,15]
[341156820,1730483444539,-324.48471092,0.0004671,30]
[341156822,1730483444551,-303.86427388,0.00046865,2]
[341156842,1730483444734,-254.63205,0.000469,120]
[341156844,1730483444753,-1007.92,0.000469,96]
[341156846,1730483444763,-697.02,0.00046992,2]
[341156848,1730483444773,-353.80715578,0.00047,30]
[341156850,1730483444783,-231.37611672,0.00047,14]
[341156852,1730483444792,-151.1,0.00047107,2]
[341156854,1730483444804,-178.30205085,0.00047107,2]
[341156855,1730483444813,-27817.2934,0.00047117,2]
[341156856,1730483444822,-151.0,0.00047117,14]
[341156857,1730483444832,-151.0,0.00047117,14]
[341156858,1730483444842,-153.828974,0.00047117,14]
[341156859,1730483444851,-154.127626,0.00047117,14]
[341156860,1730483444861,-151.0,0.00047117,14]
[341156861,1730483444873,-193.921003,0.00047117,14]
[341156862,1730483444882,-193.921003,0.00047117,14]
[341156863,1730483444891,-151.0,0.00047117,14]
[341156864,1730483444901,-154.443451,0.00047117,14]
[341156865,1730483444910,-158.167271,0.00047117,14]
[341156866,1730483444920,-274.90975,0.00047117,14]
[341156867,1730483444930,-274.90975,0.00047117,14]
[341156869,1730483444940,-151.0,0.00047117,14]
[341156871,1730483444949,-3000.0,0.00047117,14]
[341156873,1730483444958,-3000.0,0.00047117,14]
[341156875,1730483444968,-3000.0,0.00047117,14]
[341156877,1730483444978,-3000.0,0.00047117,14]
[341156878,1730483444988,-3000.0,0.00047117,14]
[341156880,1730483444999,-3000.0,0.00047117,14]
[341156882,1730483445008,-3000.0,0.00047117,14]
[341156884,1730483445018,-3000.0,0.00047117,14]
[341156886,1730483445031,-3000.0,0.00047117,14]
[341156888,1730483445040,-3000.0,0.00047117,14]
[341156890,1730483445051,-3000.0,0.00047117,14]
[341156892,1730483445060,-3000.0,0.00047117,14]
[341156894,1730483445070,-3000.0,0.00047117,14]
[341156896,1730483445079,-3000.0,0.00047117,14]
[341156898,1730483445087,-3000.0,0.00047117,14]
[341156900,1730483445098,-151.0,0.00047117,14]
[341156902,1730483445108,-151.0,0.00047117,14]
[341156904,1730483445117,-151.0,0.00047117,14]
[341156906,1730483445126,-156.524,0.0004743,17]
[341156907,1730483445136,-152.0,0.00047603,3]
[341156909,1730483445145,-1200.0,0.000477,17]
[341156911,1730483445155,-523.67012795,0.00047777,30]
[341156913,1730483445165,-644.62010931,0.00047777,30]
[341156915,1730483445174,-500.0,0.00047777,30]
[341156917,1730483445183,-500.0,0.00047777,30]
[341156919,1730483445192,-546.78,0.00047777,30]
[341156921,1730483445202,-500.0,0.00047777,30]
[341156923,1730483445212,-511.252072,0.00047778,30]
[341156925,1730483445221,-512.97133751,0.00047778,30]
[341156927,1730483445230,-500.0,0.00047778,30]
[341156929,1730483445239,-500.0,0.00047778,30]
[341156931,1730483445251,-500.0,0.00047778,30]
[341156933,1730483445261,-527.1994,0.00047778,2]
[341156935,1730483445271,-2168.8564,0.00047779,2]
[341156937,1730483445280,-500.0,0.00047779,30]
[341156939,1730483445290,-500.0,0.00047779,30]
[341156941,1730483445302,-500.0,0.00047779,30]
[341156943,1730483445312,-500.0,0.00047779,30]
[341156945,1730483445321,-500.0,0.00047779,30]
[341156947,1730483445331,-500.0,0.00047779,30]
[341156949,1730483445341,-500.0,0.00047779,30]
[341156951,1730483445351,-500.0,0.00047779,30]
[341156953,1730483445361,-500.0,0.00047779,30]
[341156955,1730483445370,-500.0,0.00047779,30]
[341156957,1730483445380,-500.0,0.00047779,30]
[341156959,1730483445391,-500.0,0.00047779,7]
[341156961,1730483445400,-500.0,0.00047779,14]
[341156963,1730483445411,-500.0,0.00047779,30]
[341156965,1730483445421,-500.0,0.00047779,30]
[341156967,1730483445431,-500.0,0.00047779,30]
[341156969,1730483445441,-500.0,0.00047779,30]
[341156971,1730483445451,-500.0,0.00047779,30]
[341156972,1730483445461,-1733.86979552,0.000478,120]
[341156974,1730483445471,-2500.0,0.000478,17]
[341156976,1730483445481,-219.65372397,0.00047863,30]
[341156978,1730483445491,-174.19267148,0.00047863,30]
[341156980,1730483445501,-150.0,0.00047863,30]
[341156982,1730483445511,-1888.58138783,0.00047864,15]
[341156984,1730483445522,-500.0,0.00047873,10]
[341156986,1730483445532,-501.44920752,0.00047873,10]
[341156988,1730483445543,-500.0,0.00047873,10]
[341156990,1730483445554,-303.84623959,0.00047873,10]
[341156992,1730483445564,-500.0,0.00047878,3]
[341156993,1730483445575,-500.0,0.00047878,3]
[341156994,1730483445585,-516.43811237,0.00047878,3]
[341156995,1730483445595,-500.0,0.00047878,3]
[341156996,1730483445606,-243.61595462,0.00047878,3]
[341156997,1730483445616,-500.0,0.00047878,3]
[341156998,1730483445626,-500.0,0.00047878,3]
[341156999,1730483445636,-500.0,0.00047878,3]
[341157000,1730483445646,-167.32615797,0.00047878,30]
[341157001,1730483445656,-500.0,0.00047878,30]
[341157003,1730483445665,-500.0,0.00047878,30]
[341157005,1730483445674,-500.0,0.00047878,30]
[341157007,1730483445684,-606.88,0.00047878,30]
[341157008,1730483445693,-500.0,0.00047878,30]
[341157010,1730483445703,-300.0,0.00047878,30]
[341157013,1730483445713,-500.0,0.00047878,30]
[341157014,1730483445723,-500.0,0.00047878,30]
[341157015,1730483445733,-609.73090772,0.00047878,30]
[341157016,1730483445742,-500.0,0.00047879,3]
[341157017,1730483445753,-500.0,0.00047879,3]
[341157018,1730483445763,-500.0,0.00047879,3]
[341157019,1730483445772,-500.0,0.00047879,30]
[341157020,1730483445782,-500.0,0.00047879,30]
[341157021,1730483445792,-331.3752563,0.00047879,30]
[341157023,1730483445808,-168.6247437,0.00047879,30]
[341157025,1730483445818,-500.0,0.00047879,30]
[341157026,1730483445828,-500.0,0.00047879,30]
[341157027,1730483445838,-758.0,0.0004788,7]
[341157028,1730483445848,-174.0,0.0004788,2]
[341157029,1730483445858,-53255.88695605,0.0004788,2]
[341157030,1730483445869,-1275.79356417,0.0004788,2]
[341157031,1730483446022,-153.0,0.00040112,2]
[341157032,1730483446032,-153.0,0.00040112,2]
[341157033,1730483446043,-200.0,0.000469,120]
[341157034,1730483446054,-150.0,0.000469,96]
[341157035,1730483446064,-6727.79919372,0.0004788,2]
[341157036,1730483446252,-74.35185577,0.0004788,2]
[341157246,1730483931553,154.01,0.00019178,2]
[341157247,1730483957189,158.09,0.00015342,2]
[341157249,1730484446142,-210.4035,0.0003,2]
[341157250,1730484446162,-2227.65202562,0.00036394,2]
[341157251,1730484446182,-210.4035,0.00036494,2]
[341157252,1730484446204,-160.89,0.00042329,2]
[341157253,1730484446224,-3419.22698984,0.00042369,2]
[341157254,1730484453136,-1522.27211016,0.00042369,2]
[341157255,1730484453156,-5818.7945736,0.00042369,2]
[341157256,1730484568122,-458.0,0.000382,2]
[341157257,1730484568146,-649.33449184,0.00042469,7]
[341157258,1730484568167,-866.04266018,0.00042469,7]
[341157259,1730484568188,-541.39,0.00042739,2]
[341157260,1730484568209,-250.0,0.0004284,120]
[341157261,1730484568230,-453.92,0.0004284,2]
[341157262,1730484568253,-5329.26510174,0.0004284,2]
[341157263,1730484588974,187.24,0.00034215,2]
[341157264,1730484591497,297.25275,0.0003,2]
[341157265,1730484593413,217.859,0.00027405,2]
[341157273,1730484632214,-297.25275,0.00036086,2]
[341157274,1730484632224,-217.859,0.00036086,2]
[341157275,1730484632234,-151.8,0.00040679,2]
[341157276,1730484632243,-747.68,0.0004069,2]
[341157277,1730484632252,-2777.64469645,0.0004271,2]
[341157278,1730484632261,-250.0,0.0004271,2]
[341157279,1730484632271,-304.04,0.00042848,2]
[341157280,1730484632280,-1852.42,0.00042853,2]
[341157281,1730484632289,-5483.58920946,0.00042853,30]
[341157282,1730484632300,-957.93079054,0.00042853,30]
[341157283,1730484632309,-2102.2613235,0.00042853,2]
[341157284,1730484632332,-332.82649927,0.00042853,2]
[341157285,1730484632429,-2556.69217723,0.00042853,2]
[341157286,1730484632441,-150.0,0.0004289,7]
[341157287,1730484632451,-150.99,0.0004289,2]
[341157288,1730484632461,-575.93,0.00042897,2]
[341157289,1730484632472,-747.68,0.00042953,2]
[341157290,1730484632483,-258.24,0.00043018,2]
[341157291,1730484632492,-999.99,0.00043018,2]
[341157292,1730484632501,-2682.01,0.00043059,2]
[341157293,1730484632510,-408.22,0.0004312,2]
[341157294,1730484632519,-194.76,0.00043159,2]
[341157296,1730484632529,-250.0,0.00043177,2]
[341157298,1730484632538,-1312.39,0.00043264,2]
[341157299,1730484632547,-649.91,0.00043286,2]
[341157300,1730484632556,-200.0,0.00043351,2]
[341157301,1730484632565,-23900.0,0.00043833,2]
[341157303,1730484632575,-1300.0,0.000439,16]
[341157304,1730484632584,-500.0,0.00043919,2]
[341157305,1730484632593,-164.54,0.00043976,2]
[341157306,1730484632603,-352.2727,0.0004398,2]
[341157307,1730484632612,-310.58111645,0.0004398,2]
[341157308,1730484632621,-178.30205085,0.0004407,2]
[341157309,1730484632630,-151.1,0.0004407,2]
[341157310,1730484632639,-500.0,0.00044073,2]
[341157311,1730484632649,-217.17141663,0.00044079,120]
[341157312,1730484632658,-4389.75150894,0.00044079,3]
[341157313,1730484632667,-89475.76902989,0.00044079,2]
[341157316,1730484638288,-3123.8059,0.00042269,2]
[341157317,1730484638298,-17328.9921018,0.00044079,2]
[341157318,1730484638313,-850.31100141,0.00044079,2]
[341157319,1730484638521,-11528.88107578,0.00044079,2]
[341157348,1730484640199,-2921.34425095,0.00044079,2]
[341157374,1730484640446,-949.35918265,0.00044079,2]
[341157761,1730484644582,-5610.95609395,0.00044079,2]
[341157770,1730484644664,-251424.76971548,0.00044079,2]
[341157772,1730484644675,-174.0,0.0004408,2]
[341157774,1730484644684,-151.0,0.0004408,14]
[341157776,1730484644694,-151.0,0.0004408,14]
[341157778,1730484644703,-151.0,0.0004408,14]
[341157780,1730484644713,-151.0,0.0004408,14]
[341157782,1730484644723,-53343.52479268,0.0004408,2]
[341157785,1730484644736,-86123.12826876,0.0004408,2]
[341157809,1730484644964,-10325.04988554,0.0004408,2]
[341157850,1730484646274,-247.418775,0.0004408,14]
[341157851,1730484646284,-34007.28940624,0.0004408,2]
[341157852,1730484646353,-6963.9,0.0004408,2]
[341157853,1730484646430,-1736.65,0.0004408,2]
[341157854,1730484646508,-139000.00000006,0.0004408,2]
[341157855,1730484646520,-1224.28670172,0.0004408,2]
[341158421,1730484654279,157.53,0.00015342,2]
[341158422,1730484770573,250.0,0.00017,2]
[341158423,1730484771632,300.0,0.00019,2]
[341158424,1730484910992,8000.0,0.00044562,30]
[341158425,1730485259005,-350.0,0.00021,2]
[341158426,1730485478355,150.0,0.00021,3]
[341158429,1730485519841,2820.10482483,9e-05,2]
[341158430,1730485555513,16204.44896538,0.000159,2]
[341158432,1730485567282,357.06491876,0.00021,2]
[341158435,1730485608785,8000.25598319,0.0001726,2]
[341158436,1730485627139,-1568.83671214,0.0002388,2]
[341158437,1730485627170,-157.22745346,0.0002388,2]
[341158438,1730485640092,-824.9138794,0.0002388,2]
[341158439,1730485640112,-1437.91712652,0.000239,2]
[341158440,1730485640131,-971.22595785,0.00024,2]
[341158441,1730485640149,-774.83353151,0.0002402,2]
[341158442,1730485640168,-1811.8935898,0.00024775,2]
[341158443,1730485640187,-931.07861927,0.00025,2]
[341158444,1730485647582,157.56,0.00015342,2]
[341158450,1730485746173,-500.0,0.00023921,2]
[341158451,1730485746197,-500.0,0.00023921,2]
[341158452,1730485746220,-500.0,0.00023921,2]
[341158453,1730485746243,-500.0,0.00023921,2]
[341158454,1730485746266,-500.0,0.00023921,2]
[341158455,1730485746290,-500.0,0.00023921,2]
[341158456,1730485746314,-500.0,0.00023921,2]
[341158457,1730485746336,-269.27490004,0.00023921,2]
[341158458,1730485746356,-500.0,0.00023921,2]
[341158459,1730485746379,-500.0,0.00023921,2]
[341158460,1730485746402,-12285.62375855,0.00023921,2]
[341158461,1730485746424,-104380.8595058,0.00023922,2]
[341158462,1730485746447,-3515.51957366,0.0002421,2]
[341158463,1730485746471,-3400.48260475,0.000245,2]
[341158464,1730485746493,-500.0,0.00024575,2]
[341158465,1730485746518,-49256.03438954,0.00025,2]
[341158466,1730485746542,-13788.19329367,0.00025,2]
[341158467,1730485746564,-2894.8371054,0.00025,2]
[341158468,1730485746585,-3216.84503981,0.000251,2]
[341158469,1730485746606,-901.12,0.000251,2]
[341158470,1730485746625,-30273.66490999,0.000253,5]
[341158471,1730485746650,-500.0,0.00025945,2]
[341158472,1730485746674,-502.09536571,0.00026399,2]
[341158473,1730485746699,-500.0,0.00026399,2]
[341158474,1730485746726,-500.0,0.00026399,2]
[341158475,1730485746751,-500.0,0.00026399,2]
[341158476,1730485746775,-500.0,0.00026399,2]
[341158477,1730485746801,-500.0,0.00026399,2]
[341158478,1730485746827,-192.74900044,0.00026399,2]
[341158479,1730485746851,-12462.74355019,0.000264,2]
[341158480,1730485746873,-184.39,0.00029737,2]
[341158481,1730485746896,-28431.88908572,0.000299,2]
[341158482,1730485746918,-163.87041872,0.000299,2]
[341158483,1730485746940,-291.7635,0.0003,2]
[341158484,1730485746961,-9999.99,0.0003,2]
[341158485,1730485746982,-9070.55015502,0.0003,2]
[341158486,1730485747005,-5398.5967283,0.0003,2]
[341158487,1730485747027,-1151.80328345,0.000335,2]
[341158488,1730485754094,-350.0,0.00035,2]
[341158516,1730485832458,-1656.6277757,0.00036,120]
[341158517,1730485832607,-2675.67335934,0.00036,120]
[341158604,1730485838413,-3955.36520777,0.00036,120]
[341158605,1730485838624,-130.23228252,0.00036,120]
[341158606,1730485838636,-291.7635,0.00036494,2]
[341158607,1730485838647,-131.21221748,0.00036541,45]
[341158611,1730485840367,-153.11278252,0.00036541,45]
[341158612,1730485840377,-1291.04216193,0.00037066,2]
[341158613,1730485840386,-1291.04216192,0.00037066,2]
[341158614,1730485840395,-743.08475163,0.00038812,2]
[341158615,1730485840448,-34.51524837,0.00038812,2]
[341158616,1730485840457,-8339.7327817,0.00039,2]
[341158617,1730485840534,-510.27815286,0.00039,2]
[341158618,1730485840682,-149.98906544,0.00039,2]
[341158619,1730485840691,-9000.0,0.00039,3]
[341158620,1730485840701,-157.53,0.00039671,2]
[341158621,1730485840710,-4299.95861563,0.0004,4]
[341158622,1730485840720,-1000.0,0.00040122,2]
[341158623,1730485840730,-150.0,0.00040391,2]
[341158624,1730485840739,-165.433,0.000408,2]
[341158625,1730485840748,-250.0,0.00040811,2]
[341158626,1730485840758,-1874.66257942,0.00041,60]